[Event "SVK Extraliga 2019-20"]
[Site "Slovakia"]
[Date "2019.11.24"]
[Round "4"]
[White "Mrva, Martin"]
[Black "Antoniewski, Rafal"]
[Result "0-1"]
[ECO "B11"]
[WhiteElo "2402"]
[BlackElo "2481"]
[Annotator "ChessBase"]
[PlyCount "130"]
[EventDate "2019.10.19"]
[EventType "team-tourn"]
[EventCountry "SVK"]
[SourceTitle "playchess.com"]
[Source "ChessBase"]
[SourceQuality "1"]
[WhiteTeam "Snina"]
[BlackTeam "Dunajov"]
[TimeControl "40/5400+30:1800+30"]

1. e4 {[%emt 0:00:00]} c6 {[%emt 0:00:17]} 2. Nf3 {[%emt 0:00:00]} d5 {[%emt 0:00:08]} 3. Nc3 {[%emt 0:00:00]} Bg4 {[%emt 0:01:17]} 4. h3 {[%emt 0:00:14]} Bxf3 {[%emt 0:00:08]} 5. Qxf3 {[%emt 0:00:05]} e6 {[%emt 0:00:07]} 6. g3 {[%emt 0:00:35]} Nf6 {[%emt 0:05:01]} 7. Bg2 {[%emt 0:00:20]} Bb4 {[%emt 0:00:07]} 8. O-O {[%emt 0:05:17]} O-O {[%emt 0:00:31]} 9. Re1 {[%emt 0:09:30]} Bxc3 {[%emt 0:05:59]} 10. Qxc3 {[%emt 0:00:15]} Nxe4 {[%emt 0:05:50]} 11. Bxe4 {[%emt 0:00:53]} dxe4 {[%emt 0:00:05]} 12. Rxe4 {[%emt 0:00:05]} Nd7 {[%emt 0:00:28]} 13. b3 {[%emt 0:02:34]} Qf6 {[%emt 0:07:51]} 14. d4 {[%emt 0:04:19]} Qf5 {[%emt 0:04:25]} 15. Rf4 {[%emt 0:10:40]} Qxh3 {[%emt 0:02:49]} 16. Bb2 {[%emt 0:10:35]} f6 {[%emt 0:01:12]} 17. Re1 {[%emt 0:00:33]} Rf7 {[%emt 0:04:50]} 18. Rfe4 {[%emt 0:09:38]} Qf5 {[%emt 0:16:35]} 19. Qd2 {[%emt 0:08:02]} Re8 {[%emt 0:08:45]} 20. c4 {[%emt 0:03:32]} e5 {[%emt 0:08:09]} 21. Kg2 {[%emt 0:01:48]} Ref8 {[%emt 0:08:53]} 22. Ba3 {[%emt 0:02:18]} Rc8 {[%emt 0:00:42]} 23. Qa5 {[%emt 0:05:57]} b6 {[%emt 0:01:33]} 24. Qa6 {[%emt 0:00:05]} Nb8 {[%emt 0:00:30]} 25. Qa4 {[%emt 0:00:06]} c5 {[%emt 0:02:12]} 26. dxc5 {[%emt 0:00:57]} bxc5 {[%emt 0:00:05]} 27. Qa5 {[%emt 0:02:03]} Rfc7 {[%emt 0:02:37]} 28. Qd2 {[%emt 0:03:07]} Qd7 {[%emt 0:00:50]} 29. R4e2 {[%emt 0:05:56]} Qc6+ {[%emt 0:00:21]} 30. Kg1 {[%emt 0:01:11]} Rd7 {[%emt 0:00:20]} 31. Qe3 {[%emt 0:00:36]} Qd6 {[%emt 0:01:32]} 32. g4 {[%emt 0:02:09]} h6 {[%emt 0:00:17]} 33. Rc1 {[%emt 0:06:27]} Qe6 {[%emt 0:02:30]} 34. f3 {[%emt 0:00:59]} Na6 {[%emt 0:01:24]} 35. Rg2 {[%emt 0:01:05]} Rcd8 {[%emt 0:01:29]} 36. Rc3 {[%emt 0:01:46]} Rd4 {[%emt 0:00:13]} 37. Re2 {[%emt 0:00:59]} Qd6 {[%emt 0:01:14]} 38. Kg2 {[%emt 0:00:11]} Nc7 {[%emt 0:00:35]} 39. Qf2 {[%emt 0:00:18]} Ne6 {[%emt 0:00:08]} 40. Bc1 {[%emt 0:00:06]} Qc6 {[%emt 0:00:56]} 41. Kg3 {[%emt 0:30:54]} Rd3 {[%emt 0:32:16]} 42. Rxd3 {[%emt 0:03:11]} Rxd3 {[%emt 0:00:05]} 43. Be3 {[%emt 0:01:19]} Qd6 {[%emt 0:00:27]} 44. Kg2 {[%emt 0:00:00]} Nd4 {[%emt 0:00:00]} 45. Rd2 {[%emt 0:00:00]} Rc3 {[%emt 0:00:00]} 46. Bxd4 {[%emt 0:00:00]} exd4 {[%emt 0:00:00]} 47. Qe2 {[%emt 0:00:00]} Qf4 {[%emt 0:00:00]} 48. Qe6+ {[%emt 0:00:00]} Kh7 {[%emt 0:00:00]} 49. Qf5+ {[%emt 0:00:00]} Qxf5 {[%emt 0:00:00]} 50. gxf5 {[%emt 0:00:00]} a5 {[%emt 0:00:00]} 51. Kg3 {[%emt 0:00:00]} a4 {[%emt 0:00:00]} 52. bxa4 {[%emt 0:00:00]} Rxc4 {[%emt 0:00:00]} 53. Kf4 {[%emt 0:00:00]} Rxa4 {[%emt 0:00:00]} 54. Ke4 {[%emt 0:00:00]} Ra3 {[%emt 0:00:00]} 55. Rf2 {[%emt 0:00:00]} d3 {[%emt 0:00:00]} 56. Kd5 {[%emt 0:00:00]} Rc3 {[%emt 0:00:00]} 57. Rd2 {[%emt 0:00:00]} c4 {[%emt 0:00:00]} 58. Kd4 {[%emt 0:02:34]} Rc2 {[%emt 0:00:00]} 59. Ke3 {[%emt 0:00:05]} Rc1 {[%emt 0:00:00]} 60. a3 {[%emt 0:02:42]} Ra1 {[%emt 0:00:00]} 61. Kd4 {[%emt 0:00:07]} Rxa3 {[%emt 0:01:25]} 62. Kxc4 {[%emt 0:00:05]} Ra5 {[%emt 0:00:10]} 63. Rxd3 {[%emt 0:01:18]} Rxf5 {[%emt 0:00:06]} 64. Kd4 {[%emt 0:00:12]} Re5 {[%emt 0:00:48]} 65. f4 {[%emt 0:00:04]} Re7 {[%emt 0:00:13]} 0-1

[Event "SVK Extraliga 2019-20"]
[Site "Slovakia"]
[Date "2019.11.24"]
[Round "4"]
[White "Sepesi, Samuel"]
[Black "Pniaczek, Marek"]
[Result "0-1"]
[ECO "C52"]
[WhiteElo "2174"]
[BlackElo "2118"]
[Annotator "NA"]
[PlyCount "58"]
[EventDate "2019.10.19"]
[EventType "team-tourn"]
[EventCountry "SVK"]
[SourceTitle "playchess.com"]
[Source "ChessBase"]
[SourceQuality "1"]
[WhiteTeam "Snina"]
[BlackTeam "Dunajov"]
[TimeControl "40/5400+30:1800+30"]

1. e4 {[%emt 0:00:00]} e5 {[%emt 0:00:00]} 2. Nf3 {[%emt 0:00:00]} Nc6 {[%emt 0:00:00]} 3. Bc4 {[%emt 0:03:22]} Bc5 {[%emt 0:00:00]} 4. b4 {[%emt 0:00:33]} Bxb4 {[%emt 0:03:22]} 5. c3 {[%emt 0:00:07]} Ba5 {[%emt 0:00:15]} 6. d4 {[%emt 0:00:20]} Bb6 {[%emt 0:01:31]} 7. O-O {[%emt 0:08:04]} d6 {[%emt 0:03:15]} 8. dxe5 {[%emt 0:05:29]} dxe5 {[%emt 0:00:55]} 9. Qb3 {[%emt 0:11:46]} Qf6 {[%emt 0:01:43]} 10. Bg5 {[%emt 0:35:31]} Qg6 {[%emt 0:00:10]} 11. Rd1 {[%emt 0:07:15]} Bg4 {[%emt 0:02:22]} 12. Nbd2 {[%emt 0:00:35]} Nf6 {[%emt 0:14:39]} 13. Bd5 {[%emt 0:07:25]} O-O {[%emt 0:01:55]} 14. Bxc6 {[%emt 0:03:48]} bxc6 {[%emt 0:00:13]} 15. Bh4 {[%emt 0:00:11]} Rfe8 {[%emt 0:07:15]} 16. Bg3 {[%emt 0:00:41]} Bxf3 {[%emt 0:18:01]} 17. Nxf3 {[%emt 0:02:48]} Nxe4 {[%emt 0:02:37]} 18. Nxe5 {[%emt 0:00:33]} Qf6 {[%emt 0:05:03]} 19. Nf3 {[%emt 0:05:01]} Nxc3 {[%emt 0:01:57]} 20. Re1 {[%emt 0:00:16]} Ne2+ {[%emt 0:01:02]} 21. Kf1 {[%emt 0:00:04]} Nxg3+ {[%emt 0:00:15]} 22. hxg3 {[%emt 0:00:39]} Rad8 {[%emt 0:01:22]} 23. Rad1 {[%emt 0:01:41]} Rxe1+ {[%emt 0:02:21]} 24. Rxe1 {[%emt 0:00:12]} g6 {[%emt 0:01:15]} 25. Qc2 {[%emt 0:01:50]} Rd5 {[%emt 0:01:51]} 26. g4 {[%emt 0:00:20]} h6 {[%emt 0:01:39]} 27. Re8+ {[%emt 0:02:04]} Kg7 {[%emt 0:00:05]} 28. Qc1 {[%emt 0:00:54]} Rb5 {[%emt 0:04:50]} 29. a4 {[%emt 0:01:32]} Rb2 {[%emt 0:01:58]} 0-1

[Event "SVK Extraliga 2019-20"]
[Site "Slovakia"]
[Date "2019.11.24"]
[Round "4"]
[White "Kantorik, Marian"]
[Black "Mrvova, Alena"]
[Result "1-0"]
[ECO "A40"]
[WhiteElo "2165"]
[BlackElo "2165"]
[Annotator "NA"]
[PlyCount "101"]
[EventDate "2019.10.19"]
[EventType "team-tourn"]
[EventCountry "SVK"]
[SourceTitle "playchess.com"]
[Source "ChessBase"]
[SourceQuality "1"]
[WhiteTeam "Dunajov"]
[BlackTeam "Snina"]
[TimeControl "40/5400+30:1800+30"]

1. d4 {[%emt 0:00:00]} Nf6 {[%emt 0:00:50]} 2. c4 {[%emt 0:00:03]} e6 {[%emt 0:00:50]} 3. g3 {[%emt 0:01:11]} Bb4+ {[%emt 0:04:37]} 4. Bd2 {[%emt 0:00:34]} Be7 {[%emt 0:00:31]} 5. Bg2 {[%emt 0:00:55]} d5 {[%emt 0:00:18]} 6. Nf3 {[%emt 0:00:37]} O-O {[%emt 0:02:41]} 7. O-O {[%emt 0:00:06]} c5 {[%emt 0:04:19]} 8. cxd5 {[%emt 0:03:14]} Nxd5 {[%emt 0:01:58]} 9. dxc5 {[%emt 0:05:51]} Bxc5 {[%emt 0:00:33]} 10. Qc2 {[%emt 0:02:48]} Be7 {[%emt 0:05:00]} 11. Rd1 {[%emt 0:06:33]} Qb6 {[%emt 0:06:54]} 12. e4 {[%emt 0:02:25]} Nb4 {[%emt 0:00:11]} 13. Qb3 {[%emt 0:05:29]} N8c6 {[%emt 0:05:17]} 14. Be3 {[%emt 0:03:45]} Bc5 {[%emt 0:01:19]} 15. Bxc5 {[%emt 0:02:00]} Qxc5 {[%emt 0:00:03]} 16. Na3 {[%emt 0:01:01]} e5 {[%emt 0:01:48]} 17. Qc3 {[%emt 0:05:09]} Qe7 {[%emt 0:02:42]} 18. h3 {[%emt 0:05:35]} f6 {[%emt 0:02:12]} 19. Nc4 {[%emt 0:01:54]} Be6 {[%emt 0:06:03]} 20. a3 {[%emt 0:01:14]} Na6 {[%emt 0:00:34]} 21. Bf1 {[%emt 0:04:53]} Rac8 {[%emt 0:15:06]} 22. b4 {[%emt 0:09:21]} b5 {[%emt 0:05:41]} 23. Nd6 {[%emt 0:05:39]} Nd4 {[%emt 0:02:15]} 24. Nxc8 {[%emt 0:01:18]} Rxc8 {[%emt 0:00:06]} 25. Qe3 {[%emt 0:05:40]} Nc2 {[%emt 0:01:42]} 26. Qd2 {[%emt 0:00:05]} Nxa1 {[%emt 0:01:11]} 27. Rxa1 {[%emt 0:00:04]} Nc7 {[%emt 0:10:45]} 28. Rc1 {[%emt 0:03:50]} Ne8 {[%emt 0:04:01]} 29. Rxc8 {[%emt 0:02:05]} Bxc8 {[%emt 0:00:03]} 30. Qd5+ {[%emt 0:00:12]} Be6 {[%emt 0:01:17]} 31. Qxb5 {[%emt 0:00:06]} Nd6 {[%emt 0:00:04]} 32. Qc5 {[%emt 0:01:02]} Qd7 {[%emt 0:00:13]} 33. Nd2 {[%emt 0:01:09]} Nf7 {[%emt 0:02:05]} 34. Nc4 {[%emt 0:11:28]} Ng5 {[%emt 0:01:49]} 35. Nd6 {[%emt 0:00:57]} Nf3+ {[%emt 0:02:15]} 36. Kg2 {[%emt 0:00:52]} Nd2 {[%emt 0:01:43]} 37. Ba6 {[%emt 0:04:58]} Bxh3+ {[%emt 0:04:14]} 38. Kh1 {[%emt 0:00:26]} Be6 {[%emt 0:04:09]} 39. Bc8 {[%emt 0:00:53]} Qe7 {[%emt 0:00:03]} 40. Qc6 {[%emt 0:02:44]} g6 {[%emt 0:01:27]} 41. Bxe6+ {[%emt 0:30:55]} Qxe6 {[%emt 0:30:21]} 42. Qa8+ {[%emt 0:00:00]} Kg7 {[%emt 0:00:00]} 43. Qxa7+ {[%emt 0:00:00]} Kg8 {[%emt 0:00:00]} 44. Qb8+ {[%emt 0:00:00]} Kg7 {[%emt 0:00:00]} 45. Kg2 {[%emt 0:00:00]} f5 {[%emt 0:00:00]} 46. Qc7+ {[%emt 0:00:00]} Kh6 {[%emt 0:00:00]} 47. Nf7+ {[%emt 0:00:00]} Kh5 {[%emt 0:00:00]} 48. Qd8 {[%emt 0:00:00]} Nf3 {[%emt 0:00:00]} 49. Kxf3 {[%emt 0:00:00]} fxe4+ {[%emt 0:00:00]} 50. Kg2 {[%emt 0:00:00]} Qg4 {[%emt 0:00:00]} 51. Qh4+ {[%emt 0:00:00]} 1-0

[Event "SVK Extraliga 2019-20"]
[Site "Slovakia"]
[Date "2019.11.24"]
[Round "4"]
[White "Hanko, Pavol"]
[Black "Rajnak, Daniel"]
[Result "0-1"]
[ECO "D63"]
[WhiteElo "2114"]
[BlackElo "2110"]
[Annotator "NA"]
[PlyCount "66"]
[EventDate "2019.10.19"]
[EventType "team-tourn"]
[EventCountry "SVK"]
[SourceTitle "playchess.com"]
[Source "ChessBase"]
[SourceQuality "1"]
[WhiteTeam "Dunajov"]
[BlackTeam "Snina"]
[TimeControl "40/5400+30:1800+30"]

1. d4 {[%emt 0:00:00]} d5 {[%emt 0:00:00]} 2. Nf3 {[%emt 0:00:11]} Nf6 {[%emt 0:00:31]} 3. c4 {[%emt 0:00:22]} e6 {[%emt 0:00:07]} 4. Bg5 {[%emt 0:00:44]} Be7 {[%emt 0:00:04]} 5. e3 {[%emt 0:00:29]} O-O {[%emt 0:00:05]} 6. Nc3 {[%emt 0:00:14]} Nbd7 {[%emt 0:04:43]} 7. Rc1 {[%emt 0:01:25]} dxc4 {[%emt 0:04:39]} 8. Bxc4 {[%emt 0:00:18]} c5 {[%emt 0:00:12]} 9. O-O {[%emt 0:03:21]} a6 {[%emt 0:08:42]} 10. a4 {[%emt 0:05:21]} cxd4 {[%emt 0:01:57]} 11. exd4 {[%emt 0:03:56]} Nb6 {[%emt 0:01:55]} 12. Ba2 {[%emt 0:03:28]} Nbd5 {[%emt 0:11:29]} 13. Bb1 {[%emt 0:07:17]} Qa5 {[%emt 0:14:16]} 14. Nxd5 {[%emt 0:08:59]} Qxd5 {[%emt 0:02:03]} 15. Bxf6 {[%emt 0:08:35]} Bxf6 {[%emt 0:00:07]} 16. Rc5 {[%emt 0:00:23]} Qd6 {[%emt 0:04:16]} 17. Qc2 {[%emt 0:07:23]} g6 {[%emt 0:00:38]} 18. Rd1 {[%emt 0:00:46]} Rd8 {[%emt 0:08:13]} 19. h4 {[%emt 0:06:28]} Bd7 {[%emt 0:07:01]} 20. h5 {[%emt 0:03:02]} b6 {[%emt 0:03:44]} 21. Rc3 {[%emt 0:01:27]} Rac8 {[%emt 0:03:20]} 22. hxg6 {[%emt 0:01:10]} hxg6 {[%emt 0:00:16]} 23. Rdd3 {[%emt 0:11:15]} Rxc3 {[%emt 0:01:03]} 24. bxc3 {[%emt 0:02:26]} Qa3 {[%emt 0:02:30]} 25. Re3 {[%emt 0:08:34]} Bxa4 {[%emt 0:07:31]} 26. Qe4 {[%emt 0:00:28]} Qc1+ {[%emt 0:01:36]} 27. Kh2 {[%emt 0:01:41]} Kg7 {[%emt 0:04:08]} 28. Kg3 {[%emt 0:01:46]} Bb3 {[%emt 0:01:41]} 29. Bd3 {[%emt 0:02:16]} Qxc3 {[%emt 0:02:42]} 30. Bxa6 {[%emt 0:01:04]} Qc7+ {[%emt 0:00:05]} 31. Ne5 {[%emt 0:00:19]} Bc2 {[%emt 0:01:40]} 32. Qf4 {[%emt 0:03:22]} g5 {[%emt 0:00:30]} 33. Qg4 {[%emt 0:06:28]} Bf5 {[%emt 0:00:12]} 0-1

[Event "SVK Extraliga 2019-20"]
[Site "Slovakia"]
[Date "2019.11.24"]
[Round "4"]
[White "Harvan, Richard"]
[Black "Magat, Jozef"]
[Result "1/2-1/2"]
[ECO "C00"]
[WhiteElo "2098"]
[BlackElo "2103"]
[Annotator "NA"]
[PlyCount "35"]
[EventDate "2019.10.19"]
[EventType "team-tourn"]
[EventCountry "SVK"]
[SourceTitle "playchess.com"]
[Source "ChessBase"]
[SourceQuality "1"]
[WhiteTeam "Snina"]
[BlackTeam "Dunajov"]
[TimeControl "40/5400+30:1800+30"]

1. e4 {[%emt 0:00:00]} e6 {[%emt 0:00:00]} 2. c4 {[%emt 0:02:37]} d5 {[%emt 0:04:22]} 3. cxd5 {[%emt 0:00:23]} exd5 {[%emt 0:00:06]} 4. exd5 {[%emt 0:00:14]} Nf6 {[%emt 0:03:49]} 5. Nc3 {[%emt 0:01:56]} Nxd5 {[%emt 0:02:06]} 6. Bc4 {[%emt 0:01:16]} Nxc3 {[%emt 0:02:58]} 7. bxc3 {[%emt 0:00:16]} Bd6 {[%emt 0:01:28]} 8. Qe2+ {[%emt 0:16:03]} Qe7 {[%emt 0:02:37]} 9. Qxe7+ {[%emt 0:00:19]} Bxe7 {[%emt 0:00:59]} 10. Nf3 {[%emt 0:01:06]} O-O {[%emt 0:01:11]} 11. O-O {[%emt 0:03:08]} Bd6 {[%emt 0:10:37]} 12. Re1 {[%emt 0:06:48]} Nc6 {[%emt 0:03:29]} 13. d4 {[%emt 0:04:59]} Bd7 {[%emt 0:07:31]} 14. Bd3 {[%emt 0:09:33]} Rae8 {[%emt 0:05:04]} 15. Be3 {[%emt 0:00:56]} b6 {[%emt 0:01:52]} 16. Ng5 {[%emt 0:03:13]} h6 {[%emt 0:01:48]} 17. Nf3 {[%emt 0:15:28]} f5 {[%emt 0:10:08]} 18. Bd2 1/2-1/2

[Event "SVK Extraliga 2019-20"]
[Site "Slovakia"]
[Date "2019.11.24"]
[Round "4"]
[White "Pcola st., Jaroslav"]
[Black "Lisko, Frantisek"]
[Result "1/2-1/2"]
[ECO "B45"]
[WhiteElo "2057"]
[BlackElo "2274"]
[Annotator "NA"]
[PlyCount "93"]
[EventDate "2019.10.19"]
[EventType "team-tourn"]
[EventCountry "SVK"]
[SourceTitle "playchess.com"]
[Source "ChessBase"]
[SourceQuality "1"]
[WhiteTeam "Snina"]
[BlackTeam "Dunajov"]
[TimeControl "40/5400+30:1800+30"]

1. e4 {[%emt 0:00:00]} c5 {[%emt 0:00:00]} 2. Nf3 {[%emt 0:00:18]} e6 {[%emt 0:00:00]} 3. Nc3 {[%emt 0:01:52]} Nc6 {[%emt 0:00:08]} 4. d4 {[%emt 0:00:28]} cxd4 {[%emt 0:00:07]} 5. Nxd4 {[%emt 0:00:05]} Nf6 {[%emt 0:00:10]} 6. a3 {[%emt 0:05:09]} Be7 {[%emt 0:01:59]} 7. Be3 {[%emt 0:10:18]} O-O {[%emt 0:01:14]} 8. f4 {[%emt 0:01:46]} d6 {[%emt 0:01:44]} 9. Be2 {[%emt 0:06:06]} Bd7 {[%emt 0:09:34]} 10. O-O {[%emt 0:04:47]} a6 {[%emt 0:12:29]} 11. Bf3 {[%emt 0:09:28]} Rc8 {[%emt 0:01:43]} 12. Nxc6 {[%emt 0:08:01]} Bxc6 {[%emt 0:00:47]} 13. Qd2 {[%emt 0:13:18]} Qc7 {[%emt 0:01:06]} 14. Qf2 {[%emt 0:00:47]} b5 {[%emt 0:00:55]} 15. Kh1 {[%emt 0:00:58]} Qb7 {[%emt 0:16:26]} 16. e5 {[%emt 0:00:43]} Ne4 {[%emt 0:04:38]} 17. Nxe4 {[%emt 0:03:00]} Bxe4 {[%emt 0:00:09]} 18. exd6 {[%emt 0:01:25]} Bxd6 {[%emt 0:00:34]} 19. c3 {[%emt 0:03:39]} f5 {[%emt 0:05:56]} 20. Rad1 {[%emt 0:04:18]} Bb8 {[%emt 0:01:06]} 21. Qd2 {[%emt 0:09:00]} Rf7 {[%emt 0:04:30]} 22. Bd4 {[%emt 0:01:26]} Re8 {[%emt 0:08:33]} 23. Rde1 {[%emt 0:03:30]} Qd5 {[%emt 0:05:23]} 24. Qe3 {[%emt 0:04:12]} Bxf3 {[%emt 0:05:28]} 25. Qxf3 {[%emt 0:00:34]} Qxf3 {[%emt 0:01:48]} 26. Rxf3 {[%emt 0:00:07]} Rd7 {[%emt 0:00:51]} 27. g3 {[%emt 0:00:36]} Kf7 {[%emt 0:00:56]} 28. Kg2 {[%emt 0:00:42]} Bc7 {[%emt 0:01:32]} 29. Rfe3 {[%emt 0:03:27]} Bd8 {[%emt 0:00:55]} 30. R1e2 {[%emt 0:00:46]} Bf6 {[%emt 0:00:35]} 31. Be5 {[%emt 0:00:20]} Rd5 {[%emt 0:01:36]} 32. Kf3 {[%emt 0:00:27]} h6 {[%emt 0:01:06]} 33. h3 {[%emt 0:02:40]} Bd8 {[%emt 0:01:02]} 34. Bd4 {[%emt 0:00:07]} Bc7 {[%emt 0:02:05]} 35. Re1 {[%emt 0:00:14]} g5 {[%emt 0:03:51]} 36. R1e2 {[%emt 0:01:08]} a5 {[%emt 0:01:24]} 37. Re1 {[%emt 0:01:01]} b4 {[%emt 0:01:27]} 38. axb4 {[%emt 0:00:15]} axb4 {[%emt 0:00:17]} 39. Ra1 {[%emt 0:00:34]} bxc3 {[%emt 0:03:46]} 40. bxc3 {[%emt 0:00:35]} Ra5 {[%emt 0:01:35]} 41. Ree1 {[%emt 0:03:11]} Rd8 {[%emt 0:13:27]} 42. Reb1 {[%emt 0:05:24]} Rd7 {[%emt 0:05:45]} 43. Rxa5 {[%emt 0:03:05]} Bxa5 {[%emt 0:00:04]} 44. Rb3 {[%emt 0:03:00]} Kg6 {[%emt 0:01:22]} 45. Ra3 {[%emt 0:01:06]} Bd8 {[%emt 0:01:15]} 46. Ra6 {[%emt 0:01:47]} Kf7 {[%emt 0:00:14]} 47. Ra7 {[%emt 0:02:29]} 1/2-1/2

[Event "SVK Extraliga 2019-20"]
[Site "Slovakia"]
[Date "2019.11.24"]
[Round "4.1"]
[White "Balogh, Csaba"]
[Black "Petenyi, Tamas"]
[Result "1-0"]
[ECO "B06"]
[WhiteElo "2591"]
[BlackElo "2427"]
[Annotator "ChessBase"]
[PlyCount "85"]
[EventDate "2019.10.19"]
[EventType "team-tourn"]
[EventCountry "SVK"]
[SourceTitle "playchess.com"]
[Source "ChessBase"]
[SourceQuality "1"]
[WhiteTeam "Modra"]
[BlackTeam "Streda"]
[TimeControl "40/5400+30:1800+30"]

1. e4 {[%emt 0:00:00]} g6 {[%emt 0:00:19]} 2. d4 {[%emt 0:00:00]} Bg7 {[%emt 0:00:04]} 3. Nc3 {[%emt 0:00:32]} c6 {[%emt 0:00:16]} 4. f4 {[%emt 0:00:26]} b5 {[%emt 0:02:02]} 5. e5 {[%emt 0:13:34]} b4 {[%emt 0:06:29]} 6. Ne4 {[%emt 0:00:19]} d5 {[%emt 0:01:35]} 7. Nf2 {[%emt 0:10:08]} Nh6 {[%emt 0:05:10]} 8. Nf3 {[%emt 0:00:56]} O-O {[%emt 0:02:30]} 9. Bd3 {[%emt 0:04:20]} c5 {[%emt 0:02:02]} 10. dxc5 {[%emt 0:00:43]} Qa5 {[%emt 0:08:42]} 11. Nd4 {[%emt 0:04:20]} Qxc5 {[%emt 0:05:18]} 12. Be3 {[%emt 0:00:22]} Nc6 {[%emt 0:09:51]} 13. Be2 {[%emt 0:20:22]} Nxd4 {[%emt 0:01:18]} 14. Bxd4 {[%emt 0:00:04]} Qa5 {[%emt 0:07:05]} 15. g4 {[%emt 0:00:22]} Ba6 {[%emt 0:04:28]} 16. Bxa6 {[%emt 0:04:03]} Qxa6 {[%emt 0:05:47]} 17. Qe2 {[%emt 0:00:04]} Qa5 {[%emt 0:00:56]} 18. O-O {[%emt 0:01:41]} e6 {[%emt 0:05:44]} 19. a3 {[%emt 0:04:15]} Rfc8 {[%emt 0:02:28]} 20. axb4 {[%emt 0:02:19]} Qxb4 {[%emt 0:00:12]} 21. c3 {[%emt 0:00:06]} Qe7 {[%emt 0:02:55]} 22. Ra6 {[%emt 0:00:51]} Kh8 {[%emt 0:04:01]} 23. Rfa1 {[%emt 0:00:29]} Rc7 {[%emt 0:00:37]} 24. Qe3 {[%emt 0:05:34]} Rb8 {[%emt 0:03:40]} 25. b4 {[%emt 0:00:44]} Rc4 {[%emt 0:00:23]} 26. Rxa7 {[%emt 0:00:23]} Qe8 {[%emt 0:00:36]} 27. R1a6 {[%emt 0:05:43]} Ng8 {[%emt 0:01:27]} 28. f5 {[%emt 0:05:27]} gxf5 {[%emt 0:02:58]} 29. gxf5 {[%emt 0:00:05]} exf5 {[%emt 0:05:19]} 30. Nh3 {[%emt 0:00:08]} Rc6 {[%emt 0:03:05]} 31. Rxc6 {[%emt 0:01:55]} Qxc6 {[%emt 0:00:01]} 32. Ng5 {[%emt 0:00:12]} Qg6 {[%emt 0:01:20]} 33. Qg3 {[%emt 0:06:07]} f4 {[%emt 0:01:12]} 34. Qg4 {[%emt 0:00:28]} Qb1+ {[%emt 0:03:51]} 35. Kg2 {[%emt 0:00:11]} Qc2+ {[%emt 0:00:08]} 36. Kh3 {[%emt 0:00:37]} Qd3+ {[%emt 0:00:55]} 37. Kh4 {[%emt 0:00:20]} Nh6 {[%emt 0:01:11]} 38. Nxf7+ {[%emt 0:00:06]} Nxf7 {[%emt 0:00:02]} 39. Rxf7 {[%emt 0:00:06]} Rg8 {[%emt 0:00:06]} 40. Rxg7 {[%emt 0:05:18]} Rxg7 {[%emt 0:00:12]} 41. e6 {[%emt 0:31:17]} Qg6 {[%emt 0:31:39]} 42. Qxg6 {[%emt 0:00:11]} hxg6 {[%emt 0:00:04]} 43. e7 {[%emt 0:00:19]} 1-0

[Event "SVK Extraliga 2019-20"]
[Site "Slovakia"]
[Date "2019.11.24"]
[Round "4.1"]
[White "Matuszewski, Michal"]
[Black "Sahidi, Samir"]
[Result "0-1"]
[ECO "A45"]
[WhiteElo "2524"]
[BlackElo "2374"]
[Annotator "ChessBase"]
[PlyCount "86"]
[EventDate "2019.10.19"]
[EventType "team-tourn"]
[EventCountry "SVK"]
[SourceTitle "playchess.com"]
[Source "ChessBase"]
[SourceQuality "1"]
[WhiteTeam "Prakovce"]
[BlackTeam "Bratislava"]
[TimeControl "40/5400+30:1800+30"]

1. d4 {[%emt 0:00:00]} Nf6 {[%emt 0:00:00]} 2. Bg5 {[%emt 0:00:00]} e6 {[%emt 0:02:32]} 3. e4 {[%emt 0:00:00]} h6 {[%emt 0:01:02]} 4. Bxf6 {[%emt 0:00:01]} Qxf6 {[%emt 0:00:13]} 5. c3 {[%emt 0:00:08]} d6 {[%emt 0:02:38]} 6. Bd3 {[%emt 0:02:56]} e5 {[%emt 0:13:36]} 7. Ne2 {[%emt 0:00:06]} g6 {[%emt 0:04:35]} 8. O-O {[%emt 0:00:08]} Bg7 {[%emt 0:00:20]} 9. f4 {[%emt 0:01:31]} Qe7 {[%emt 0:00:58]} 10. Nd2 {[%emt 0:00:29]} Nd7 {[%emt 0:06:28]} 11. Qb3 {[%emt 0:04:56]} O-O {[%emt 0:00:47]} 12. a4 {[%emt 0:17:17]} Kh7 {[%emt 0:04:58]} 13. Nc4 {[%emt 0:12:16]} Nb6 {[%emt 0:06:46]} 14. Ne3 {[%emt 0:16:23]} a5 {[%emt 0:00:38]} 15. Rf3 {[%emt 0:06:40]} Bd7 {[%emt 0:08:42]} 16. Qc2 {[%emt 0:01:08]} c5 {[%emt 0:25:11]} 17. dxe5 {[%emt 0:06:05]} dxe5 {[%emt 0:00:20]} 18. f5 {[%emt 0:00:05]} Rad8 {[%emt 0:02:23]} 19. b3 {[%emt 0:05:47]} Bc6 {[%emt 0:02:17]} 20. c4 {[%emt 0:02:42]} Rd6 {[%emt 0:01:33]} 21. Nc3 {[%emt 0:01:33]} Rd4 {[%emt 0:01:19]} 22. Raf1 {[%emt 0:01:02]} Qd6 {[%emt 0:01:43]} 23. Ncd5 {[%emt 0:03:01]} Nd7 {[%emt 0:01:24]} 24. f6 {[%emt 0:12:31]} Bh8 {[%emt 0:00:41]} 25. Ng4 {[%emt 0:00:16]} Bxd5 {[%emt 0:04:23]} 26. Rh3 {[%emt 0:04:53]} Nxf6 {[%emt 0:04:04]} 27. Nxh6 {[%emt 0:00:20]} Nh5 {[%emt 0:01:45]} 28. Rxh5 {[%emt 0:00:52]} gxh5 {[%emt 0:00:54]} 29. Nf5 {[%emt 0:00:15]} Qg6 {[%emt 0:00:50]} 30. exd5 {[%emt 0:00:46]} Rxd3 {[%emt 0:01:05]} 31. Qxd3 {[%emt 0:00:02]} Rg8 {[%emt 0:00:10]} 32. Qe4 {[%emt 0:00:14]} b6 {[%emt 0:01:09]} 33. d6 {[%emt 0:01:05]} Bf6 {[%emt 0:00:23]} 34. Ng3 {[%emt 0:00:33]} Kg7 {[%emt 0:00:36]} 35. Qf5 {[%emt 0:00:56]} Qxf5 {[%emt 0:00:21]} 36. Rxf5 {[%emt 0:00:26]} Kg6 {[%emt 0:00:16]} 37. Rf3 {[%emt 0:00:33]} Rd8 {[%emt 0:00:45]} 38. Rd3 {[%emt 0:00:23]} Bh4 {[%emt 0:00:16]} 39. Kf2 {[%emt 0:00:38]} Kf6 {[%emt 0:00:13]} 40. Kf3 {[%emt 0:00:24]} Bxg3 {[%emt 0:00:32]} 41. Kxg3 {[%emt 0:30:02]} Ke6 {[%emt 0:30:10]} 42. Kh4 {[%emt 0:00:41]} e4 {[%emt 0:00:44]} 43. Re3 {[%emt 0:00:49]} Ke5 {[%emt 0:00:00]} 0-1